bitfinex-derivatives/quotes_SOLF0:USTF0_20250923
["timestamp","ask_amount","ask_price","bid_price","bid_amount"]
[1758647941318,1.14480737,218.4,218.3,7.7]
[1758647941516,7.44,218.42,218.3,7.7]
[1758647941720,1.14483901,218.41,218.3,7.7]
[1758647941921,1.14483901,218.4,218.3,7.7]
[1758647942118,7.44,218.48,218.36,71.7757]
[1758647942316,1.14470763,218.47,218.36,71.7757]
[1758647942519,1.14470763,218.46,218.36,71.7757]
[1758647942715,7.44,218.44,218.38,4.1187]
[1758647943115,7.44,218.44,218.37,4.1189]
[1758647943319,5.01379088,218.52,218.38,64.07]
[1758647943517,7.44,218.48,218.39,71.7669]
[1758647943718,1.14454024,218.47,218.39,71.7669]
[1758647943917,7.44,218.48,218.39,71.7669]
[1758647944227,7.44,218.48,218.4,4.1182]
[1758647944822,7.44,218.48,218.33,64.0842]
[1758647944823,1.14454888,218.47,218.37,4.1188]
[1758647945017,7.44,218.45,218.31,64.0901]
[1758647945219,7.44,218.44,218.31,64.0901]
[1758647945821,7.44,218.44,218.36,4.1191]
[1758647946923,11.5576,218.44,218.34,4.1195]
[1758647947123,7.44,218.44,218.34,4.1195]
[1758647947526,7.44,218.4,218.27,7.7]
[1758647947726,7.44,218.4,218.28,64.099]
[1758647947925,7.44,218.4,218.27,7.7]
[1758647948931,7.44,218.4,218.32,4.1199]
[1758647949128,123.32,218.48,218.34,71.7819]
[1758647949323,1.14480582,218.47,218.34,71.7819]
[1758647949529,12.70210582,218.46,218.35,4.1191]
[1758647949724,1.14480582,218.45,218.34,71.7801]
[1758647949925,67.14,218.45,218.34,71.7801]
[1758647950623,7.44,218.46,218.38,7.7]
[1758647950831,11.5564,218.51,218.38,7.7]
[1758647951031,30.70454861,218.5,218.38,7.7]
[1758647951232,1.14454861,218.49,218.38,7.7]
[1758647951433,29.56,218.5,218.38,7.7]
[1758647951634,1.14451689,218.49,218.38,7.7]
[1758647951935,29.56,218.5,218.43,4.1178]
[1758647952135,1.1445168,218.49,218.43,4.1178]
[1758647952434,7.15,218.47,218.43,4.1178]
[1758647953836,7.15,218.47,218.39,4.1184]
[1758647954137,7.15,218.47,218.35,64.0785]
[1758647954338,7.15,218.47,218.36,64.0759]
[1758647954535,7.15,218.47,218.42,4.118]
[1758647954739,114.34,218.51,218.39,64.0661]
[1758647954940,1.14454006,218.5,218.39,64.0661]
[1758647955240,1.14454006,218.49,218.39,64.0661]
[1758647955443,121.49,218.51,218.39,64.0661]
[1758647955643,1.14450833,218.5,218.39,64.0661]
[1758647955838,1.14450833,218.49,218.43,4.1176]
[1758647956141,121.49,218.51,218.4,64.064]
[1758647956341,1.14450816,218.5,218.42,7.67]
[1758647956539,346.06,218.57,218.43,64.0551]
[1758647956842,346.06,218.57,218.39,7.67]
[1758647956843,7.15,218.55,218.39,7.67]
[1758647957044,7.15,218.53,218.39,7.67]
[1758647957246,7.15,218.51,218.39,7.67]
[1758647957445,4.1167,218.5,218.39,7.67]
[1758647958341,4.1167,218.5,218.37,64.0726]
[1758647958342,7.15,218.48,218.33,7.67]
[1758647958538,7.15,218.46,218.33,7.67]
[1758647958937,7.15,218.46,218.37,4.1188]
[1758647959141,7.15,218.46,218.33,7.67]
[1758647959346,7.15,218.46,218.35,4.1193]
[1758647960240,11.2673,218.46,218.35,64.0782]
[1758647960444,11.2673,218.46,218.36,7.67]
[1758647960645,7.15,218.46,218.36,7.67]
[1758647960848,64.0446,218.47,218.31,7.67]
[1758647961047,8.29468174,218.46,218.31,7.67]
[1758647961245,7.15,218.46,218.31,7.67]
[1758647961847,4.1178,218.43,218.35,4.1193]
[1758647962245,64.0531,218.44,218.31,7.67]
[1758647962444,4.1184,218.4,218.33,4.1197]
[1758647964043,7.31,218.48,218.34,7.15]
[1758647964245,49.2,218.46,218.34,7.15]
[1758647964440,1.14472239,218.45,218.34,7.15]
[1758647964648,1.14472239,218.44,218.34,7.15]
[1758647964844,7.31,218.48,218.34,7.15]
[1758647965045,5.26191363,218.47,218.39,4.1184]
[1758647965244,68.56471363,218.46,218.39,4.1184]
[1758647965443,1.14471363,218.45,218.39,4.1184]
[1758647968944,1.14471363,218.44,218.39,4.1184]
[1758647969148,1.14471363,218.43,218.39,11.2684]
[1758647969347,1.1446818,218.42,218.39,11.2684]
[1758647969651,119.8772,218.47,218.39,11.2684]
[1758647969852,1.14468189,218.46,218.39,11.2684]
[1758647970051,1.14468189,218.45,218.39,7.15]
[1758647970247,8.45468189,218.44,218.39,7.15]
[1758647970451,1.14468189,218.43,218.39,7.15]
[1758647970854,1.14468189,218.43,218.34,7.15]
[1758647971048,7.31,218.41,218.34,7.15]
[1758647971247,1.14468189,218.4,218.34,7.15]
[1758647971958,1.14468189,218.4,218.27,7.15]
[1758647972150,7.31,218.39,218.27,7.15]
[1758647972352,1.14468189,218.38,218.27,7.15]
[1758647973563,1.14468189,218.38,218.3,7.15]
[1758647973768,1.14468189,218.37,218.33,7.15]
[1758647974068,1.14468189,218.36,218.33,7.15]
[1758647974268,76.37799088,218.44,218.32,4.1199]
[1758647974564,7.31,218.4,218.3,4.1203]
[1758647974765,7.31,218.38,218.3,4.1203]
[1758647974971,1.14490773,218.37,218.3,4.1203]
[1758647975969,4.1191,218.36,218.3,4.1203]
[1758647976170,8.45490773,218.35,218.3,4.1203]
[1758647976456,1.14490773,218.34,218.3,4.1203]
[1758647976656,5.26440773,218.34,218.28,7.15]
[1758647976863,1.14490773,218.33,218.28,7.15]
[1758647977164,1.14490773,218.32,218.26,94.56576646]
[1758647977362,1.14490773,218.31,218.27,7.15]
[1758647977563,7.31,218.36,218.27,7.15]
[1758647977868,1.14509955,218.35,218.27,7.15]
[1758647978055,1.14509955,218.34,218.28,4.1205]
[1758647978255,1.14509955,218.33,218.28,11.2705]
[1758647978553,1.14509955,218.32,218.28,11.2705]
[1758647978750,1.14509955,218.32,218.26,87.41576646]
[1758647978751,7.31,218.3,218.26,87.41576646]
[1758647978966,1.14509955,218.29,218.28,7.15]
[1758647979157,115.52,218.35,218.28,7.15]
[1758647979158,1.14509955,218.34,218.28,7.15]
[1758647979467,115.52,218.35,218.28,7.15]
[1758647979468,1.14509955,218.33,218.29,7.15]
[1758647979652,1.14509955,218.32,218.27,7.15]
[1758647979854,1.14509955,218.31,218.3,4.1203]
[1758647980058,1.14509955,218.35,218.27,7.15]
[1758647980260,1.14509955,218.34,218.27,7.15]
[1758647980461,115.6,218.39,218.34,4.1194]
[1758647980655,1.14495531,218.38,218.34,11.2694]
[1758647980858,1.14495531,218.37,218.34,11.2694]
[1758647981058,1.14495531,218.36,218.34,11.2694]
[1758647981261,115.6,218.39,218.34,11.2694]
[1758647981458,1.1449554,218.38,218.35,4.1191]
[1758647981661,1.1449554,218.37,218.35,4.1191]
[1758647981858,1.1449554,218.36,218.35,4.1191]
[1758647982261,1.14495508,218.36,218.35,4.1191]
[1758647983169,1.14495508,218.36,218.34,7.15]
[1758647983364,115.6,218.4,218.34,7.15]
[1758647983669,7.31,218.38,218.3,2.54420737]
[1758647983964,1.14495527,218.37,218.3,2.54420737]
[1758647984466,8.45495527,218.37,218.29,7.15]
[1758647984765,1.14495527,218.36,218.29,7.15]
[1758647985765,7.31,218.35,218.26,87.41576646]
[1758647985964,1.14495527,218.34,218.26,87.41576646]
[1758647986358,5.26455527,218.34,218.26,91.53676646]
[1758647986564,1.14512508,218.33,218.26,91.53676646]
[1758647986758,8.45512508,218.32,218.26,87.41576646]
[1758647986963,7.31,218.3,218.26,87.41576646]
[1758647987160,88.78952323,218.33,218.26,87.41576646]
[1758647987367,8.45537639,218.32,218.26,87.41576646]
[1758647987567,7.31,218.3,218.26,87.41576646]
[1758647987761,7.31,218.32,218.26,87.41576646]
[1758647988066,1.14537589,218.31,218.26,87.41576646]
[1758647988268,11.4306,218.29,218.26,87.41576646]
[1758647988467,7.31,218.28,218.21,1.62952323]
[1758647988771,11.4308,218.28,218.21,1.62952323]
[1758647989668,7.31,218.28,218.2,7.15]
[1758647990266,2.77515054,218.27,218.17,4.1226]
[1758647990463,116.50562731,218.26,218.17,4.1226]
[1758647990667,1.14562731,218.25,218.17,4.1226]
[1758647990866,7.31,218.24,218.15,7.15]
[1758647991068,1.14579273,218.23,218.15,7.15]
[1758647991269,7.31,218.24,218.15,7.15]
[1758647991462,7.31,218.24,218.15,11.2729]
[1758647991665,115.38,218.24,218.17,1.62952323]
[1758647991970,115.38,218.24,218.14,64.1401]
[1758647991971,115.46,218.25,218.21,7.15]
[1758647992367,115.46,218.25,218.2,1.62952323]
[1758647992368,115.46,218.25,218.2,5.75162323]
[1758647992970,122.77,218.25,218.2,5.75162323]
[1758647995272,7.31,218.25,218.2,12.77162323]
[1758647995776,33.22,218.26,218.21,11.1418]
[1758647996169,40.26,218.26,218.21,11.1418]
[1758647996672,33.22,218.26,218.21,7.02]
[1758647996873,7.04,218.25,218.2,1.62952323]
[1758647997775,7.04,218.25,218.17,12.77222323]
[1758647997974,7.04,218.25,218.17,8.64952323]
[1758647998877,7.04,218.25,218.19,4.1223]
[1758647999174,7.04,218.25,218.14,1.62952323]
[1758647999375,8.66952323,218.25,218.14,1.62952323]
[1758647999775,4.1215,218.24,218.16,4.1227]
[1758648000172,7.04,218.25,218.17,1.62952323]
[1758648000374,7.04,218.25,218.17,8.64952323]
[1758648000775,1.62952323,218.29,218.2,1.62952323]
[1758648000977,7.04,218.3,218.21,7.02]
[1758648001176,7.04,218.3,218.23,1.62952323]
[1758648002370,7.04,218.27,218.17,8.64952323]
[1758648002581,4.1212,218.26,218.18,4.1225]
[1758648003176,7.04,218.27,218.17,8.64952323]
[1758648004686,7.04,218.27,218.17,7.02]
[1758648004873,7.04,218.27,218.13,4.18065533]
[1758648005080,7.04,218.27,218.13,11.20065533]
[1758648005582,46.04,218.27,218.16,71.1545]
[1758648006076,7.04,218.27,218.21,4.1218]
[1758648006482,7.04,218.27,218.2,7.02]
[1758648008883,7.04,218.27,218.08,64.1581]
[1758648008884,7.04,218.27,218.14,7.02]
[1758648009285,11.1615,218.24,218.17,4.1227]
[1758648009482,7.04,218.24,218.17,4.1227]
[1758648009877,7.04,218.24,218.19,4.1223]
[1758648010088,7.04,218.24,218.19,11.1423]
[1758648010986,11.1613,218.25,218.17,4.1227]
[1758648011288,7.04,218.25,218.17,4.1227]
[1758648011586,7.04,218.24,218.14,7.02]
[1758648011884,7.04,218.24,218.13,64.1433]
[1758648011885,4.1208,218.28,218.16,7.13]
[1758648012081,7.59,218.26,218.16,7.13]
[1758648012579,4.1214,218.25,218.16,7.13]
[1758648013179,7.59,218.26,218.2,4.1221]
[1758648013375,7.59,218.26,218.2,11.2521]
[1758648013788,7.59,218.26,218.21,4.1218]
[1758648013988,7.59,218.26,218.21,11.2518]
[1758648014876,7.59,218.26,218.21,7.13]
[1758648015076,7.59,218.32,218.19,64.1257]
[1758648015281,72.70550399,218.31,218.2,7.13]
[1758648015486,71.56,218.31,218.2,7.13]
[1758648016086,7.59,218.32,218.24,7.13]
[1758648016884,7.59,218.32,218.27,11.2508]
[1758648017596,7.59,218.33,218.25,4.1212]
[1758648017793,1.14533903,218.32,218.25,4.1212]
[1758648017986,7.59,218.33,218.26,4.1208]
[1758648018285,7.59,218.37,218.28,64.0993]
[1758648018478,82.79,218.41,218.29,7.13]
[1758648018688,1.14501773,218.4,218.33,4.1195]
[1758648018878,1.14501773,218.39,218.3,64.0937]
[1758648019084,82.79,218.41,218.31,7.13]
[1758648019285,1.14489232,218.4,218.31,7.13]
[1758648019484,82.79,218.41,218.31,11.2499]
[1758648019689,1.14489185,218.4,218.31,11.2499]
[1758648019885,82.79,218.41,218.31,7.13]
[1758648020092,1.14489192,218.4,218.31,7.13]
[1758648020388,82.79,218.41,218.31,7.13]
[1758648020583,1.14494868,218.4,218.29,7.13]
[1758648020787,7.59,218.44,218.34,64.0812]
[1758648020985,353.97,218.48,218.35,7.13]
[1758648021192,1.14469415,218.47,218.35,7.13]
[1758648021491,1.14469415,218.46,218.35,7.13]
[1758648021681,1.14469415,218.45,218.35,7.13]
[1758648021879,4.1171,218.47,218.37,4.1189]
[1758648022080,1.14469431,218.46,218.37,4.1189]
[1758648022279,1.14469431,218.45,218.37,4.1189]
[1758648022488,346.38,218.48,218.35,7.13]
[1758648022692,7.59,218.45,218.35,7.13]
[1758648022993,7.59,218.43,218.3,7.13]
[1758648023182,11.4286,218.39,218.3,7.13]
[1758648023386,7.31,218.39,218.3,7.13]
[1758648023692,7.31,218.37,218.25,7.45]
[1758648023891,4.1197,218.33,218.25,11.5711]
[1758648024888,119.4793,218.35,218.25,11.5711]
[1758648025291,4.1201,218.31,218.22,4.1217]
[1758648025484,4.1201,218.31,218.2,7.45]
[1758648025886,4.1205,218.29,218.2,7.45]
[1758648027993,4.1208,218.27,218.2,7.45]
[1758648028694,7.31,218.24,218.15,7.45]
[1758648029397,7.31,218.24,218.16,4.1227]
[1758648031396,7.31,218.24,218.15,7.45]
[1758648032093,4.1216,218.23,218.15,7.45]
[1758648032598,7.31,218.24,218.16,1.63085082]
[1758648032992,7.31,218.24,218.15,7.45]
[1758648032993,98.06085082,218.24,218.15,7.45]
[1758648033794,4.1219,218.22,218.15,7.45]
[1758648034395,4.1222,218.2,218.13,5.75415082]
[1758648034598,4.1222,218.2,218.13,1.63085082]
[1758648034899,7.31,218.21,218.11,1.63085082]
[1758648035199,7.31,218.21,218.11,5.75455082]
[1758648035593,7.31,218.21,218.11,1.63085082]
[1758648037302,4.1223,218.2,218.12,4.1236]
[1758648037605,115.38,218.19,218.12,4.1236]
[1758648038102,7.31,218.21,218.14,1.63085082]
[1758648038914,8.94085082,218.21,218.1,4.1239]
[1758648039115,1.63085082,218.2,218.09,1.63085082]
[1758648039304,8.45600823,218.19,218.07,7.45]
[1758648039609,7.31,218.16,218.07,7.45]
[1758648040108,135.24978241,218.23,218.12,1.63085082]
[1758648040109,7.31,218.21,218.12,1.63085082]
[1758648040301,1.14604221,218.2,218.12,1.63085082]
[1758648040611,1.14604221,218.19,218.1,7.45]
[1758648040809,122.71,218.21,218.1,7.45]
[1758648041108,1.14601017,218.2,218.1,7.45]
[1758648041310,4.1223,218.2,218.12,4.1236]
[1758648041506,1.14602612,218.19,218.12,4.1236]
[1758648041807,4.1223,218.2,218.12,4.1236]
[1758648042509,115.4,218.2,218.1,7.45]
[1758648043106,7.31,218.21,218.14,7.45]
[1758648044308,7.31,218.21,218.14,11.5732]
[1758648044509,7.31,218.21,218.14,7.45]
[1758648044708,11.432,218.21,218.14,7.45]
[1758648044903,7.31,218.21,218.14,7.45]
[1758648045112,115.4,218.24,218.14,7.45]
[1758648045306,1.14585319,218.23,218.14,7.45]
[1758648045506,115.4,218.24,218.14,71.5899]
[1758648045803,7.31,218.25,218.14,71.5899]
[1758648046010,7.31,218.25,218.19,4.1222]
[1758648048410,7.31,218.25,218.17,4.1227]
[1758648049513,7.31,218.25,218.16,64.1341]
[1758648049714,7.31,218.25,218.17,7.45]
[1758648050110,7.31,218.25,218.2,4.122]
[1758648050417,7.31,218.25,218.2,11.572]
[1758648051108,7.31,218.25,218.16,64.1341]
[1758648051109,11.94503339,218.3,218.22,4.1218]
[1758648051316,1.14566415,218.29,218.21,7.45]
[1758648051517,7.82463339,218.3,218.21,7.45]
[1758648051712,1.14557736,218.29,218.21,7.45]
[1758648052013,7.82463339,218.3,218.21,71.5682]
[1758648052014,7.31,218.3,218.21,71.5682]
[1758648052223,115.4,218.31,218.22,7.45]
[1758648052712,115.4,218.31,218.23,4.1214]
[1758648053218,7.21,218.3,218.21,4.1219]
[1758648054015,7.21,218.3,218.22,4.1216]
[1758648054320,7.21,218.3,218.19,7.28]
[1758648054510,4.121,218.27,218.19,11.4023]
[1758648054813,7.21,218.28,218.19,4.1223]
[1758648055124,7.21,218.24,218.15,7.28]
[1758648055812,97.35,218.24,218.15,11.4031]
[1758648056311,7.21,218.23,218.1,7.28]
[1758648056511,4.1219,218.22,218.14,4.1231]
[1758648057214,7.21,218.23,218.14,4.1231]
[1758648057518,7.21,218.23,218.11,64.1481]
[1758648057719,7.21,218.23,218.14,7.28]
[1758648058216,7.21,218.23,218.18,11.4024]
[1758648058517,7.21,218.23,218.19,7.28]
[1758648058705,4.1207,218.28,218.19,7.28]
[1758648058913,7.21,218.28,218.19,7.28]
[1758648059914,7.21,218.28,218.22,4.1216]
[1758648060111,7.21,218.28,218.19,71.4047]
[1758648060417,7.21,218.32,218.23,71.3939]
[1758648061008,346.34,218.33,218.29,4.1203]
[1758648061210,7.21,218.37,218.27,7.28]
[1758648061916,62.44,218.4,218.27,7.28]
[1758648062123,7.21,218.41,218.32,64.0874]
[1758648062420,13.4261779,218.42,218.35,7.28]
[1758648062818,115.38,218.43,218.35,7.28]
[1758648063014,115.38,218.43,218.39,4.1185]
[1758648063222,115.38,218.43,218.39,11.3985]
[1758648063422,115.38,218.43,218.39,7.28]
[1758648063814,115.38,218.43,218.37,7.28]
[1758648064015,353.65,218.46,218.37,7.28]
[1758648064217,346.44,218.46,218.37,7.28]
[1758648064422,115.36,218.48,218.42,4.1179]
[1758648064618,115.36,218.48,218.4,7.28]
[1758648064815,7.21,218.47,218.35,7.28]
[1758648065127,7.21,218.47,218.4,4.1183]
[1758648065512,7.21,218.47,218.39,7.28]
[1758648065818,7.21,218.47,218.37,4.1188]
[1758648066323,7.21,218.47,218.39,4.1185]
[1758648068319,7.21,218.47,218.36,4.119]
[1758648070335,4.1173,218.46,218.36,4.119]
[1758648071328,7.21,218.47,218.38,4.1187]
[1758648072028,7.21,218.47,218.35,7.28]
[1758648072226,1.14459142,218.46,218.35,7.28]
[1758648072425,7.68,218.45,218.35,7.28]
[1758648073420,7.68,218.45,218.36,4.1191]
[1758648073625,123.04,218.48,218.35,7.28]
[1758648073834,1.14458296,218.47,218.35,7.28]
[1758648074031,7.68,218.46,218.35,11.3992]
[1758648074633,7.68,218.46,218.35,7.28]
[1758648074833,7.68,218.46,218.37,4.1187]
[1758648075131,7.68,218.46,218.38,7.11]
[1758648075435,7.68,218.46,218.39,4.1185]
[1758648076021,115.36,218.48,218.42,7.11]
[1758648076423,123.04,218.48,218.41,4.1182]
[1758648077125,7.68,218.58,218.41,7.11]
[1758648077430,7.68,218.56,218.41,7.11]
[1758648077621,7.68,218.54,218.42,64.0579]
[1758648077934,7.68,218.54,218.4,64.0636]
[1758648077935,7.68,218.54,218.43,7.11]
[1758648079426,4.1161,218.52,218.44,4.1174]
[1758648079625,7.68,218.54,218.43,7.11]
[1758648079830,7.68,218.54,218.46,7.11]
[1758648080034,7.68,218.54,218.49,4.1165]
[1758648080331,7.68,218.57,218.46,7.11]
[1758648080530,4.1159,218.53,218.41,7.11]
[1758648080736,7.68,218.52,218.41,7.11]
[1758648081332,88.02,218.52,218.41,7.11]
[1758648082546,4.1167,218.5,218.42,4.1178]
[1758648082748,7.68,218.49,218.42,4.1178]
[1758648083136,4.1169,218.48,218.39,4.1184]
[1758648083336,7.68,218.47,218.39,4.1184]
[1758648083743,7.68,218.47,218.37,64.0729]
[1758648083945,7.68,218.47,218.38,6.96]
[1758648084343,4.1165,218.51,218.44,4.1176]
[1758648084840,7.68,218.52,218.42,6.96]
[1758648085744,7.68,218.49,218.38,6.96]
[1758648087150,4.1172,218.46,218.39,4.1185]
[1758648087347,11.7972,218.46,218.39,4.1185]
[1758648088155,64.0254,218.54,218.38,6.96]
[1758648088455,8.82449759,218.53,218.38,6.96]
[1758648088645,1.14449759,218.52,218.38,6.96]
[1758648088845,7.68,218.53,218.37,64.0725]
[1758648088846,5.26089759,218.51,218.4,64.0641]
[1758648089048,1.14449759,218.5,218.41,6.96]
[1758648089248,7.68,218.5,218.41,6.96]
[1758648089453,7.68,218.5,218.43,4.1177]
[1758648089658,7.68,218.5,218.41,6.96]
[1758648090049,1.14443254,218.49,218.43,4.1176]
[1758648090359,7.68,218.5,218.41,6.96]
[1758648090555,1.14444827,218.49,218.41,6.96]
[1758648090757,7.68,218.5,218.41,6.96]
[1758648090956,1.14444827,218.49,218.41,6.96]
[1758648091262,7.68,218.57,218.43,6.96]
[1758648091559,7.68,218.55,218.43,6.96]
[1758648091759,5.2601679,218.54,218.47,4.1169]
[1758648092061,7.68,218.52,218.43,6.96]
[1758648092262,7.68,218.52,218.45,4.1173]
[1758648092455,1.14426016,218.51,218.43,6.96]
[1758648092653,7.68,218.52,218.43,6.96]
[1758648092854,1.14427578,218.51,218.43,6.96]
[1758648093153,7.68,218.52,218.43,6.96]
[1758648093361,1.14427599,218.51,218.43,6.96]
[1758648093563,7.68,218.58,218.46,6.96]
[1758648093750,1.1442032,218.57,218.46,6.96]
[1758648093954,14.16668833,218.6,218.53,4.1158]
[1758648093955,115.24,218.6,218.53,4.1158]
[1758648094158,1.14397548,218.58,218.53,4.1158]
[1758648094362,4.1144,218.61,218.54,6.96]
[1758648094363,1.14397548,218.57,218.54,6.96]
[1758648094665,354.06,218.59,218.54,11.0756]
[1758648094856,1.14390747,218.58,218.49,6.96]
[1758648095155,1.14390747,218.58,218.5,4.1164]
[1758648095156,1.14392318,218.57,218.5,4.1164]
[1758648095361,8.82392318,218.56,218.45,6.96]
[1758648095560,1.14392318,218.55,218.45,6.96]
[1758648096762,1.14392318,218.55,218.48,4.1167]
[1758648098072,122.92,218.54,218.45,11.0773]
[1758648098258,1.14392318,218.53,218.45,6.96]
[1758648098858,7.68,218.52,218.4,6.96]
[1758648099057,1.14392318,218.51,218.4,6.96]
[1758648099463,1.14392318,218.51,218.44,4.1175]
[1758648101760,1.14392318,218.51,218.45,4.1173]
[1758648103260,7.68,218.5,218.39,6.96]
[1758648103466,1.14392318,218.49,218.4,6.96]
[1758648104367,1.14392318,218.48,218.44,4.1174]
[1758648104678,1.14392318,218.47,218.4,6.96]
[1758648104962,1.14392318,218.46,218.4,6.96]
[1758648105162,8.82392318,218.45,218.4,6.96]
[1758648105469,1.14392318,218.44,218.37,6.96]
[1758648105665,1.14392318,218.43,218.37,6.96]
[1758648105868,1.14392318,218.42,218.37,6.96]
[1758648106068,1.14392318,218.41,218.37,6.96]
[1758648106269,16.81059088,218.49,218.36,64.0758]
[1758648106572,1.14447494,218.48,218.37,6.96]
[1758648106868,1.14447494,218.47,218.41,4.118]
[1758648107062,1.14447494,218.46,218.41,11.078]
[1758648107263,1.14447494,218.45,218.42,6.96]
[1758648107563,1.14447494,218.44,218.42,6.96]
[1758648107765,1.14447494,218.43,218.42,6.96]
[1758648109681,1.14447494,218.43,218.39,5.74591872]
[1758648109973,1.14447494,218.42,218.36,1.62741872]
[1758648110174,1.14447494,218.41,218.36,1.62741872]
[1758648110472,7.68,218.44,218.38,4.1186]
[1758648110473,1.14447494,218.4,218.38,4.1186]
[1758648110661,7.68,218.44,218.39,6.96]
[1758648110862,1.14454907,218.43,218.38,4.1186]
[1758648111075,1.14454907,218.42,218.39,6.96]
[1758648111270,5.01379088,218.48,218.4,6.96]
[1758648111472,5.01379088,218.49,218.4,6.96]
[1758648111668,9.13059088,218.49,218.4,6.96]
[1758648111873,7.68,218.48,218.4,6.96]
[1758648112880,11.797,218.48,218.41,4.1181]
[1758648113378,4.1172,218.47,218.41,4.1181]
[1758648113879,7.68,218.48,218.41,4.1181]
[1758648114079,7.68,218.48,218.42,4.1179]
[1758648114879,13.8112096,218.52,218.42,7.29]
[1758648115376,7.17,218.52,218.44,8.91741872]
[1758648116174,7.17,218.52,218.46,4.1171]
[1758648116577,7.17,218.52,218.44,8.91741872]
[1758648117484,4.1164,218.51,218.45,4.1173]
[1758648117876,7.17,218.52,218.44,8.91741872]
[1758648118380,7.17,218.52,218.44,13.03501872]
[1758648118782,7.17,218.52,218.44,8.91741872]
[1758648119478,11.2862,218.52,218.45,4.1173]
[1758648120380,11.2862,218.52,218.46,4.1171]
[1758648120677,7.17,218.57,218.48,7.29]
[1758648120885,14.36140478,218.58,218.48,7.29]
[1758648121075,7.17,218.58,218.5,1.62741872]
[1758648121281,461.6,218.59,218.51,7.29]
[1758648122284,468.77,218.59,218.51,7.29]
[1758648123484,468.77,218.59,218.45,7.29]
[1758648123485,7.17,218.55,218.45,7.29]
[1758648123782,7.17,218.55,218.46,1.62741872]
[1758648124779,11.2857,218.55,218.47,4.1169]
[1758648124981,11.2857,218.55,218.46,1.62741872]
[1758648125181,7.17,218.55,218.46,1.62741872]
[1758648125581,7.17,218.55,218.49,4.1165]
[1758648126679,7.17,218.52,218.45,7.29]
[1758648127876,1.62741872,218.56,218.46,1.62741872]
[1758648128079,8.79741872,218.56,218.46,1.62741872]
[1758648128785,7.17,218.56,218.49,7.29]
[1758648129583,461.56,218.59,218.53,7.29]
[1758648129779,7.17,218.61,218.53,7.29]
[1758648129981,7.17,218.65,218.56,1.62741872]
[1758648130186,7.17,218.65,218.56,8.91741872]
[1758648130385,7.17,218.65,218.55,64.0195]
[1758648130386,62.6,218.66,218.59,64.0071]
[1758648130580,62.6,218.66,218.63,7.29]
[1758648131085,62.6,218.66,218.59,1.62741872]
[1758648131785,62.6,218.66,218.6,7.5]
[1758648132083,62.6,218.66,218.61,1.62741872]
[1758648132286,62.6,218.66,218.58,5.74241872]
[1758648132486,69.86,218.66,218.56,7.5]
[1758648132685,7.26,218.64,218.55,5.74281872]
[1758648132989,8.88741872,218.64,218.53,1.62741872]
[1758648133787,4.1144,218.62,218.53,5.74321872]